bitfinex/quotes_BTCUSD_20250308
["timestamp","ask_amount","ask_price","bid_price","bid_amount"]
[1741424855451,0.03620112,86465.0,86464.0,0.011565]
[1741424855653,0.01831091,86466.0,86462.0,0.0073398]
[1741424856074,0.03620201,86465.0,86462.0,0.0073398]
[1741424856471,0.03620201,86465.0,86462.0,0.0189048]
[1741424856688,0.01831091,86466.0,86462.0,0.0189048]
[1741424856888,0.01831091,86466.0,86462.0,0.0119048]
[1741424857423,0.01831091,86466.0,86465.0,0.242872]
[1741424857597,0.05451686,86466.0,86465.0,0.242872]
[1741424857890,0.05451686,86466.0,86465.0,0.011565]
[1741424858162,0.05451686,86466.0,86463.0,0.231312]
[1741424858356,0.05451686,86466.0,86463.0,0.242877]
[1741424858487,0.03620939,86465.0,86463.0,0.242877]
[1741424858887,0.03620939,86465.0,86464.0,0.011565]
[1741424859107,0.03620939,86465.0,86464.0,0.0782]
[1741424859337,0.03620939,86465.0,86464.0,0.1246]
[1741424860908,0.01831091,86466.0,86464.0,0.136165]
[1741424861295,0.036221,86465.0,86464.0,0.136165]
[1741424861495,0.036221,86465.0,86464.0,0.143165]
[1741424862491,0.036221,86465.0,86464.0,0.136165]
[1741424863116,0.036221,86465.0,86464.0,0.1246]
[1741424863893,0.036221,86465.0,86464.0,0.1316]
[1741424864097,0.036221,86465.0,86464.0,0.1246]
[1741424864522,0.036221,86465.0,86464.0,0.1316]
[1741424864885,0.279093,86465.0,86464.0,0.007]
[1741424865154,0.047786,86465.0,86464.0,0.007]
[1741424865779,0.242875,86464.0,86462.0,0.0003398]
[1741424865998,0.047786,86463.0,86462.0,0.0003398]
[1741424868071,0.047786,86463.0,86462.0,0.0073398]
[1741424868449,0.036221,86463.0,86462.0,0.0073398]
[1741424869074,0.036221,86464.0,86462.0,0.0073398]
[1741424869290,0.036221,86463.0,86462.0,0.0073398]
[1741424869479,0.047786,86464.0,86462.0,0.0073398]
[1741424869821,0.047786,86463.0,86462.0,0.0073398]
[1741424871579,0.036221,86463.0,86462.0,0.0073398]
[1741424871990,0.036221,86463.0,86462.0,0.2502198]
[1741424872187,0.01831091,86466.0,86464.0,0.242875]
[1741424872473,0.03624021,86465.0,86464.0,0.242875]
[1741424872699,0.03624021,86465.0,86463.0,0.0775]
[1741424873739,0.03624021,86465.0,86464.0,0.007]
[1741424874145,0.03624021,86465.0,86463.0,0.0775]
[1741424875703,0.03624021,86465.0,86463.0,0.0845]
[1741424877083,0.03624021,86465.0,86463.0,0.327375]
[1741424877212,0.03624021,86465.0,86464.0,0.011565]
[1741424877422,0.03624021,86465.0,86463.0,0.0845]
[1741424880381,0.03624021,86465.0,86464.0,0.011565]
[1741424881699,0.03624021,86465.0,86464.0,0.018565]
[1741424882259,0.03142988,86465.0,86464.0,0.018565]
[1741424882455,0.0001699,86466.0,86465.0,0.319672]
[1741424882661,0.0001699,86466.0,86465.0,0.33462867]
[1741424883075,0.0001699,86466.0,86465.0,0.33421285]
[1741424884367,0.0001699,86466.0,86465.0,0.34121285]
[1741424884575,0.0001699,86466.0,86465.0,0.33421285]
[1741424884949,0.0001699,86466.0,86465.0,0.34121285]
[1741424885339,0.10453271,86466.0,86465.0,0.34121285]
[1741424885952,0.12267288,86466.0,86465.0,0.34121285]
[1741424887329,0.0995254,86484.0,86472.0,0.24285]
[1741424887467,0.011563,86480.0,86473.0,0.1102363]
[1741424887892,0.01813954,86479.0,86473.0,0.1102363]
[1741424888291,0.01813954,86479.0,86474.0,0.231283]
[1741424888695,0.01813954,86479.0,86476.0,0.231277]
[1741424888902,0.01813954,86479.0,86478.0,0.242835]
[1741424891669,0.01813954,86479.0,86478.0,0.249835]
[1741424891874,0.01813954,86479.0,86478.0,0.242835]
[1741424892257,0.01813954,86479.0,86478.0,0.25029613]
[1741424892972,0.01813954,86479.0,86478.0,0.24329613]
[1741424893721,0.01813954,86479.0,86478.0,0.242835]
[1741424894557,0.01813954,86479.0,86478.0,0.249835]
[1741424895253,0.01813954,86479.0,86478.0,0.25029613]
[1741424896691,0.01830944,86479.0,86478.0,0.249835]
[1741424896898,0.01830944,86479.0,86478.0,0.26483698]
[1741424902142,0.01830944,86479.0,86478.0,0.34563698]
[1741424902348,0.01830944,86479.0,86478.0,0.34517585]
[1741424902914,0.01830944,86479.0,86478.0,0.33817585]
[1741424904275,0.01830944,86479.0,86478.0,0.34517585]
[1741424907742,0.01830944,86479.0,86478.0,0.96687495]
[1741424907956,0.01830944,86479.0,86478.0,1.01314186]
[1741424908154,0.0001699,86479.0,86478.0,1.01277495]
[1741424908519,0.0001699,86479.0,86478.0,1.022868]
[1741424909084,0.0001699,86479.0,86478.0,1.029868]
[1741424909249,0.0001699,86479.0,86478.0,1.022868]
[1741424909459,0.0001699,86479.0,86478.0,1.0232076]
[1741424910703,0.01830594,86479.0,86478.0,1.0232076]
[1741424911691,0.01830594,86479.0,86478.0,1.0302076]
[1741424918103,0.10410724,86511.0,86504.0,0.01156]
[1741424918305,0.10410724,86511.0,86505.0,0.24276]
[1741424918526,0.231193,86508.0,86503.0,0.242765]
[1741424918660,0.10415202,86511.0,86503.0,0.242765]
[1741424918661,0.242748,86510.0,86503.0,0.242765]
[1741424919481,0.34689702,86511.0,86505.0,0.2312]
[1741424919687,0.34689702,86511.0,86505.0,0.2372]
[1741424919889,0.10415202,86511.0,86507.0,0.231194]
[1741424920204,0.10415202,86511.0,86506.0,0.011559]
[1741424920363,0.10415202,86511.0,86507.0,0.231194]
[1741424920814,0.12188432,86511.0,86505.0,0.242759]
[1741424921033,0.12188432,86511.0,86506.0,0.011559]
[1741424921406,0.01813477,86510.0,86506.0,0.011559]
[1741424921583,0.01813477,86510.0,86505.0,0.242759]
[1741424921790,0.02969377,86510.0,86505.0,0.242759]
[1741424922016,0.011559,86509.0,86504.0,0.01156]
[1741424922592,0.011559,86509.0,86506.0,0.007]
[1741424922907,0.011559,86508.0,86501.0,0.01156]
[1741424923466,0.011559,86508.0,86504.0,0.007]
[1741424923761,0.011559,86508.0,86502.0,0.12056]
[1741424923989,0.011559,86508.0,86506.0,0.007]
[1741424925741,0.011559,86508.0,86502.0,0.12056]
[1741424926063,0.011559,86508.0,86502.0,0.12756]
[1741424926360,0.011559,86508.0,86502.0,0.12056]
[1741424926561,0.011559,86508.0,86506.0,0.007]
[1741424926814,0.011559,86508.0,86502.0,0.12056]
[1741424927329,0.011559,86508.0,86502.0,0.12756]
[1741424927529,0.011559,86508.0,86502.0,0.12056]
[1741424927884,0.02986357,86510.0,86503.0,0.231205]
[1741424928298,0.04769426,86509.0,86504.0,0.01156]
[1741424928518,0.011559,86509.0,86504.0,0.01156]
[1741424928726,0.231166,86518.0,86505.0,0.2312]
[1741424928899,0.231184,86512.0,86505.0,0.2312]
[1741424929096,0.01813485,86508.0,86506.0,0.007]
[1741424929324,0.01813485,86508.0,86504.0,0.01156]
[1741424929501,0.231187,86510.0,86504.0,0.01156]
[1741424929702,0.242751,86508.0,86504.0,0.007]
[1741424930103,0.01156,86503.0,86494.0,0.24279]
[1741424930311,0.01156,86503.0,86498.0,0.231218]
[1741424930515,0.231227,86495.0,86494.0,4.478e-05]
[1741424930684,0.242788,86495.0,86494.0,4.478e-05]
[1741424931833,0.323788,86495.0,86494.0,4.478e-05]
[1741424932039,0.72377853,86495.0,86494.0,4.478e-05]
[1741424933363,0.72377853,86495.0,86494.0,0.00538438]
[1741424933564,0.70564159,86495.0,86494.0,0.00538438]
[1741424935411,0.70564159,86495.0,86494.0,0.00038438]
[1741424936022,0.70564159,86495.0,86494.0,0.00538438]
[1741424936642,0.72377981,86495.0,86494.0,0.00538438]
[1741424940350,0.24283,86480.0,86479.0,0.109]
[1741424940965,0.24283,86480.0,86473.0,0.14844]
[1741424940966,0.011563,86479.0,86473.0,0.14844]
[1741424942470,0.011563,86479.0,86478.0,0.0073396]
[1741424942926,0.01813939,86480.0,86479.0,0.011563]
[1741424943574,0.01813939,86480.0,86478.0,0.2386116]
[1741424943774,0.01813939,86480.0,86478.0,0.2501746]
[1741424944549,0.01813939,86480.0,86478.0,0.2431746]
[1741424944971,0.01913939,86480.0,86479.0,0.007]
[1741424945221,0.01813939,86480.0,86478.0,0.0003396]
[1741424949658,0.01813939,86480.0,86479.0,0.011563]
[1741424950393,0.11552017,86485.0,86479.0,0.011563]
[1741424951142,0.011563,86479.0,86478.0,0.0003396]
[1741424957007,0.011563,86479.0,86473.0,0.13064011]
[1741424957186,0.011564,86474.0,86473.0,0.13075633]
[1741424957745,0.011563,86477.0,86473.0,0.13075633]
[1741424959164,0.016973,86477.0,86474.0,0.231283]
[1741424959372,0.011563,86481.0,86476.0,0.231278]
[1741424959835,0.011563,86481.0,86476.0,0.242841]
[1741424960042,0.011563,86481.0,86476.0,0.22470205]
[1741424961155,0.01813884,86480.0,86476.0,0.22470205]
[1741424961374,0.01813884,86480.0,86479.0,0.091763]
[1741424961774,0.03986136,86480.0,86479.0,0.0802]
[1741424961985,0.05194305,86480.0,86479.0,0.0802]
[1741424962881,0.06350605,86480.0,86479.0,0.0802]
[1741424963103,0.06350605,86480.0,86479.0,0.18924]
[1741424963529,0.04536721,86480.0,86479.0,0.18924]
[1741424964224,0.08155694,86480.0,86479.0,0.18924]
[1741424964731,0.09290539,86483.0,86479.0,0.18924]
[1741424964962,0.011563,86480.0,86479.0,0.18924]
[1741424965189,0.011563,86482.0,86479.0,0.18924]
[1741424965656,0.02183157,86483.0,86479.0,0.18924]
[1741424965888,0.011562,86484.0,86479.0,0.18924]
[1741424966109,0.05435752,86483.0,86479.0,0.18924]
[1741424966334,0.03621894,86482.0,86479.0,0.18924]
[1741424966997,0.02970058,86483.0,86479.0,0.18924]
[1741424967605,0.05104238,86483.0,86479.0,0.18924]
[1741424968152,0.04779396,86482.0,86479.0,0.18924]
[1741424968351,0.011563,86482.0,86479.0,0.18924]
[1741424969078,0.011563,86481.0,86479.0,0.18924]
[1741424969282,0.011563,86480.0,86479.0,0.18924]
[1741424974766,0.24283,86480.0,86479.0,0.18924]
[1741424974965,0.011563,86480.0,86479.0,0.18924]
[1741424975174,0.2429949,86482.0,86479.0,0.18924]
[1741424975175,0.0001699,86482.0,86479.0,0.18924]
[1741424975806,0.0001699,86482.0,86479.0,0.17110087]
[1741424976533,0.0117329,86482.0,86479.0,0.17110087]
[1741424976750,0.011563,86481.0,86479.0,0.17110087]
[1741424977799,0.04780654,86480.0,86479.0,0.17110087]
[1741424978657,0.06594532,86480.0,86479.0,0.17110087]
[1741424979882,0.05438232,86480.0,86479.0,0.18266387]
[1741424980463,0.05438232,86480.0,86479.0,0.17110087]
[1741424980664,0.03624354,86480.0,86479.0,0.17110087]
[1741424981358,0.03624354,86481.0,86479.0,0.17110087]
[1741424981570,0.03624354,86480.0,86479.0,0.17110087]
[1741424981975,0.0001699,86482.0,86481.0,0.011563]
[1741424982435,0.0001699,86482.0,86481.0,0.086963]
[1741424983099,0.03641476,86482.0,86481.0,0.086963]
[1741424984049,0.0001699,86482.0,86481.0,0.086963]
[1741424984396,0.0001699,86482.0,86481.0,0.0754]
[1741424985790,0.03639194,86482.0,86481.0,0.0754]
[1741424985970,0.0001699,86482.0,86481.0,0.05726232]
[1741424986784,0.0001699,86482.0,86481.0,0.06882532]
[1741424986977,0.0001699,86482.0,86481.0,0.30008932]
[1741424990765,0.01830721,86482.0,86481.0,0.30008932]
[1741424991792,0.01830721,86482.0,86481.0,0.31463017]
[1741424991990,0.01830721,86482.0,86481.0,0.36373017]
[1741424995220,0.01830721,86482.0,86481.0,0.36406997]
[1741424995443,0.01830721,86482.0,86481.0,0.10670212]
[1741424995655,0.01830721,86482.0,86481.0,0.21574212]
[1741424996675,0.01830721,86482.0,86481.0,0.22730512]
[1741424997264,0.01830721,86482.0,86481.0,0.21574212]
[1741424997505,0.01830721,86482.0,86481.0,0.1093798]
[1741424997907,0.02987021,86482.0,86481.0,0.1093798]
[1741424999100,0.13415973,86482.0,86481.0,0.1093798]
[1741425000224,0.36542073,86482.0,86481.0,0.1093798]
[1741425000903,0.17034573,86482.0,86481.0,0.1093798]
[1741425001081,0.13415973,86482.0,86481.0,0.1093798]
[1741425001722,0.40160817,86482.0,86481.0,0.1093798]
[1741425002495,0.29731865,86482.0,86481.0,0.1093798]
[1741425004300,0.05449465,86482.0,86481.0,0.1093798]
[1741425004505,0.01830721,86482.0,86481.0,0.1093798]
[1741425004710,0.02987021,86482.0,86481.0,0.1093798]
[1741425006531,0.06606319,86482.0,86481.0,0.1093798]
[1741425007087,0.05450019,86482.0,86481.0,0.1093798]
[1741425007291,0.01830721,86482.0,86481.0,0.1093798]
[1741425007937,0.26113121,86482.0,86481.0,0.1093798]
[1741425008266,0.06606566,86482.0,86481.0,0.1093798]
[1741425010838,0.04792835,86482.0,86481.0,0.1093798]
[1741425010962,0.27918935,86482.0,86481.0,0.1093798]
[1741425013550,0.04792835,86482.0,86481.0,0.1093798]
[1741425013753,0.03636535,86482.0,86481.0,0.1209428]
[1741425014163,0.03636535,86482.0,86481.0,0.3522068]
[1741425014605,0.03636535,86482.0,86481.0,0.1093798]
[1741425020630,0.03636535,86482.0,86481.0,0.3522068]
[1741425021155,0.0001699,86482.0,86481.0,0.4310068]
[1741425021735,0.0001699,86482.0,86481.0,0.44554765]
[1741425022061,0.0001699,86482.0,86481.0,0.49234765]
[1741425022474,9e-07,86482.0,86481.0,0.49234765]
[1741425022693,7e-07,86483.0,86482.0,0.32610385]
[1741425022920,7e-07,86483.0,86482.0,0.44836498]
[1741425025987,7e-07,86483.0,86482.0,0.77006408]
[1741425029386,7e-07,86483.0,86482.0,0.79660818]
[1741425029525,7e-07,86483.0,86482.0,0.77006408]
[1741425031429,7e-07,86483.0,86482.0,0.76960295]
[1741425032483,7e-07,86483.0,86482.0,0.77006408]
[1741425035099,0.3,86518.0,86511.0,0.011559]
[1741425035723,0.3,86518.0,86513.0,0.011558]
[1741425035958,0.3264104,86518.0,86513.0,0.011558]
[1741425036364,0.02650441,86518.0,86513.0,0.011558]
[1741425037096,0.02650441,86518.0,86516.0,0.011558]
[1741425037297,0.02650441,86518.0,86513.0,0.011558]
[1741425039585,0.02650441,86518.0,86514.0,0.011558]
[1741425041618,0.02650441,86518.0,86514.0,0.089658]
[1741425042124,0.02650441,86518.0,86517.0,0.011558]
[1741425042483,0.02650441,86518.0,86514.0,0.011558]
[1741425043019,0.02650441,86518.0,86513.0,0.011558]
[1741425043216,0.02667431,86518.0,86513.0,0.011558]
[1741425045498,0.03610712,86517.0,86513.0,0.011558]
[1741425046336,0.011558,86520.0,86513.0,0.011558]
[1741425047078,0.242716,86521.0,86513.0,0.011558]
[1741425047335,0.242716,86521.0,86514.0,0.011558]
[1741425047579,0.26938626,86521.0,86514.0,0.011558]
[1741425047823,0.25463315,86520.0,86514.0,0.011558]
[1741425048016,0.26619115,86520.0,86514.0,0.011558]
[1741425048394,0.03502815,86520.0,86514.0,0.011558]
[1741425050356,0.02347015,86520.0,86515.0,0.011558]
[1741425050508,0.02347015,86520.0,86517.0,0.011558]
[1741425050936,0.25463015,86520.0,86515.0,0.011558]
[1741425052480,0.25463015,86520.0,86514.0,0.011558]
[1741425052690,0.011558,86519.0,86513.0,0.011558]
[1741425053744,0.26618815,86520.0,86514.0,0.011558]
[1741425053970,0.03615979,86519.0,86514.0,0.011558]
[1741425057331,0.03615979,86518.0,86514.0,0.011558]
[1741425057469,0.03615979,86517.0,86514.0,0.011558]
[1741425057673,0.03615979,86519.0,86514.0,0.011558]
[1741425057917,0.03615979,86518.0,86514.0,0.011558]
[1741425058146,0.03615979,86517.0,86514.0,0.011558]
[1741425058341,0.03615979,86519.0,86514.0,0.011558]
[1741425058518,0.03615979,86518.0,86514.0,0.011558]
[1741425058723,0.03615979,86517.0,86514.0,0.011558]
[1741425058925,0.03615979,86518.0,86515.0,0.011558]
[1741425059126,0.03615979,86517.0,86515.0,0.011558]
[1741425059360,0.03615979,86519.0,86515.0,0.011558]
[1741425059676,0.03615979,86518.0,86515.0,0.011558]
[1741425060077,0.03615979,86517.0,86515.0,0.011558]
[1741425060286,0.03615979,86519.0,86515.0,0.011558]
[1741425060430,0.03615979,86516.0,86515.0,0.011558]
[1741425060777,0.03519795,86520.0,86515.0,0.011558]
[1741425060778,0.03615979,86519.0,86515.0,0.011558]
[1741425060987,0.03615979,86518.0,86515.0,0.011558]
[1741425061167,0.03615979,86517.0,86515.0,0.011558]
[1741425061372,0.03615979,86519.0,86515.0,0.011558]
[1741425061563,0.03615979,86518.0,86515.0,0.011558]
[1741425061769,0.03519795,86520.0,86515.0,0.011558]
[1741425061770,0.03615979,86517.0,86515.0,0.011558]
[1741425061977,0.03615979,86519.0,86515.0,0.011558]
[1741425062179,0.03615979,86518.0,86515.0,0.011558]
[1741425062412,0.03615979,86517.0,86515.0,0.011558]
[1741425062615,0.03615979,86519.0,86515.0,0.011558]
[1741425062917,0.03615979,86518.0,86515.0,0.011558]
[1741425063118,0.03615979,86517.0,86515.0,0.011558]
[1741425063314,0.03615979,86516.0,86515.0,0.011558]
[1741425063553,0.03615979,86519.0,86515.0,0.011558]
[1741425063746,0.03615979,86518.0,86515.0,0.011558]
[1741425064132,0.03615979,86517.0,86515.0,0.011558]
[1741425064339,0.03615979,86516.0,86515.0,0.011558]
[1741425064485,0.03615979,86519.0,86515.0,0.011558]
[1741425064695,0.03615979,86518.0,86515.0,0.011558]
[1741425064892,0.03615979,86517.0,86515.0,0.011558]
[1741425065116,0.03615979,86516.0,86515.0,0.011558]
[1741425065286,0.03615979,86519.0,86515.0,0.011558]
[1741425065608,0.03615979,86518.0,86515.0,0.011558]
[1741425065812,0.03615979,86517.0,86515.0,0.011558]
[1741425065993,0.03615979,86516.0,86515.0,0.011558]
[1741425066405,0.03615979,86519.0,86515.0,0.011558]
[1741425066654,0.03615979,86518.0,86515.0,0.011558]
[1741425066848,0.03615979,86517.0,86515.0,0.011558]
[1741425067066,0.03615979,86516.0,86515.0,0.011558]
[1741425068376,0.03615979,86516.0,86515.0,0.0118976]
[1741425070739,0.0362361,86519.0,86515.0,0.0118976]
[1741425072346,0.0362361,86519.0,86516.0,0.011558]
[1741425072534,0.0362361,86520.0,86516.0,0.011558]
[1741425072681,0.0362361,86518.0,86516.0,0.011558]
[1741425072867,0.0362361,86517.0,86516.0,0.011558]
[1741425073308,0.311557,86522.0,86517.0,0.0808]
[1741425073511,0.03623798,86521.0,86517.0,0.0808]
[1741425075101,0.242718,86520.0,86517.0,0.0808]
[1741425075501,0.03623798,86519.0,86517.0,0.0808]
[1741425075660,0.04779598,86519.0,86517.0,0.0808]
[1741425075866,0.03623798,86518.0,86517.0,0.0808]
[1741425077223,0.03623798,86519.0,86517.0,0.0808]
[1741425077475,0.03623798,86518.0,86517.0,0.0808]
[1741425077883,0.03623798,86518.0,86517.0,0.311968]
[1741425078103,0.0001699,86526.0,86525.0,0.242704]
[1741425078321,0.0001699,86526.0,86525.0,0.44704485]
[1741425078534,9e-07,86526.0,86525.0,0.49254485]
[1741425082247,9e-07,86526.0,86525.0,0.2353]
[1741425082457,9e-07,86526.0,86525.0,0.23526]
[1741425082668,9e-07,86526.0,86525.0,0.246817]
[1741425084594,9e-07,86526.0,86525.0,0.23526]
[1741425085513,9e-07,86526.0,86525.0,0.246817]
[1741425086654,9e-07,86526.0,86525.0,0.26135785]
[1741425089418,9e-07,86526.0,86525.0,0.49250485]
[1741425091785,0.00356365,86533.0,86532.0,0.242684]
[1741425092384,0.00356365,86533.0,86532.0,0.318984]
[1741425094070,0.00356365,86533.0,86532.0,0.33352485]
[1741425097021,0.00356365,86533.0,86532.0,0.0763]
[1741425097230,0.00356365,86533.0,86532.0,0.318984]
[1741425097435,0.00356365,86533.0,86532.0,0.0763]
[1741425097636,0.01511965,86533.0,86532.0,0.18526]
[1741425098045,0.01511965,86533.0,86532.0,0.10896]
[1741425098473,0.242684,86532.0,86531.0,0.10896]
[1741425098769,0.011556,86532.0,86531.0,0.10896]
[1741425101002,0.011556,86532.0,86522.0,0.3216991]
[1741425101003,0.011557,86524.0,86522.0,0.3216991]
[1741425101208,0.011557,86524.0,86523.0,0.10896]
[1741425101432,0.011556,86528.0,86523.0,0.120517]
[1741425101640,0.011556,86531.0,86524.0,0.011557]
[1741425102050,0.011556,86531.0,86525.0,0.011557]
[1741425102274,0.011556,86531.0,86525.0,0.242704]
[1741425104515,0.011556,86531.0,86523.0,0.3520076]
[1741425104516,0.011556,86528.0,86523.0,0.3520076]
[1741425104637,0.011556,86528.0,86523.0,0.1208566]
[1741425104858,0.011557,86525.0,86523.0,0.1092996]
[1741425105711,0.011557,86524.0,86523.0,0.0003396]
[1741425105933,0.011557,86524.0,86523.0,0.1092996]
[1741425107200,0.011557,86524.0,86523.0,0.0003396]
[1741425107940,0.04766103,86524.0,86523.0,0.0003396]
[1741425110066,0.011557,86524.0,86523.0,0.0003396]
[1741425110492,0.04768216,86524.0,86523.0,0.0003396]
[1741425111704,0.03612516,86524.0,86523.0,0.0003396]
[1741425111910,0.242687,86531.0,86525.0,0.231147]
[1741425112110,0.03613404,86529.0,86524.0,0.011557]
[1741425112763,0.03613404,86529.0,86525.0,0.231147]
[1741425113345,0.03613404,86529.0,86527.0,0.23114]
[1741425113546,0.03613404,86529.0,86527.0,0.0791]
[1741425113746,0.03613404,86532.0,86528.0,0.242695]
[1741425113971,0.03612823,86531.0,86527.0,0.0791]
[1741425114310,0.03612823,86530.0,86527.0,0.0791]
[1741425114493,0.011556,86531.0,86527.0,0.0791]
[1741425114830,0.03612823,86530.0,86527.0,0.0791]
[1741425115037,0.03612823,86532.0,86527.0,0.0791]
[1741425115217,0.03612823,86531.0,86527.0,0.0791]
[1741425115575,0.03612823,86530.0,86527.0,0.090657]
[1741425115776,0.04768423,86532.0,86527.0,0.090657]
[1741425115977,0.03612823,86531.0,86527.0,0.090657]
[1741425116180,0.03612823,86531.0,86528.0,0.011556]
[1741425116393,0.04768423,86532.0,86527.0,0.090657]
[1741425116626,0.10392911,86528.0,86527.0,0.0791]
[1741425116871,0.14005734,86528.0,86527.0,0.0791]
[1741425117248,0.14005734,86528.0,86527.0,0.090657]
[1741425117654,0.10392911,86528.0,86527.0,0.090657]
[1741425117886,0.10392911,86528.0,86527.0,0.321798]
[1741425119814,0.10392911,86529.0,86528.0,0.011556]
[1741425120064,0.10392911,86529.0,86528.0,0.120516]
[1741425122963,0.10392911,86530.0,86529.0,0.011556]
[1741425123164,0.10392911,86530.0,86529.0,0.242692]
[1741425125336,0.14007363,86530.0,86529.0,0.242692]
[1741425127013,0.14007363,86530.0,86529.0,0.33353285]
[1741425127014,0.03614452,86530.0,86529.0,0.33353285]
[1741425127243,0.00373345,86533.0,86532.0,0.33352485]
[1741425130258,0.03989395,86533.0,86532.0,0.33352485]
[1741425130465,0.00373345,86533.0,86532.0,0.33352485]
[1741425130748,0.03989395,86533.0,86532.0,0.33352485]
[1741425131955,0.00373345,86533.0,86532.0,0.33352485]
[1741425132399,0.03990149,86533.0,86532.0,0.33352485]
[1741425134451,0.03990149,86533.0,86532.0,0.09084085]
[1741425134666,0.00373345,86533.0,86532.0,0.09084085]
[1741425135469,0.00373345,86533.0,86532.0,0.10239685]
[1741425138098,0.00373345,86533.0,86532.0,0.10355238]
[1741425141204,0.00373345,86533.0,86532.0,0.10389218]
[1741425141837,0.00373345,86533.0,86532.0,0.10273665]
[1741425143477,0.0001698,86545.0,86532.0,0.10273665]
[1741425143478,0.17431381,86549.0,86540.0,0.231106]
[1741425143696,0.00011616,86545.0,86541.0,0.10892]
[1741425144390,0.242651,86544.0,86541.0,0.10892]
[1741425144637,0.011554,86544.0,86541.0,0.10892]
[1741425144873,0.00011616,86545.0,86541.0,0.10892]
[1741425146477,0.242656,86542.0,86541.0,0.10892]
[1741425146927,0.011555,86542.0,86541.0,0.10892]
[1741425148077,0.242656,86542.0,86541.0,0.10892]
[1741425148298,0.011555,86542.0,86541.0,0.10892]
[1741425149654,0.242656,86542.0,86541.0,0.10892]
[1741425150548,0.231096,86544.0,86541.0,0.18502]
[1741425150787,0.00011616,86545.0,86544.0,0.011554]
[1741425151018,0.00011616,86545.0,86541.0,0.18502]
[1741425151241,0.01167016,86545.0,86541.0,0.18502]
[1741425152299,0.011554,86544.0,86541.0,0.18502]
[1741425152426,0.011555,86542.0,86541.0,0.10892]
[1741425153481,0.04773597,86542.0,86541.0,0.10892]
[1741425155365,0.03618097,86542.0,86541.0,0.10892]
[1741425156267,0.27883697,86542.0,86541.0,0.10892]
[1741425156472,0.011556,86533.0,86532.0,0.01488065]
[1741425156709,0.03618097,86533.0,86532.0,0.1092598]
[1741425157606,0.00895129,86539.0,86532.0,0.1092598]
[1741425158016,0.011556,86533.0,86532.0,0.1092598]
[1741425159081,0.011556,86535.0,86532.0,0.1092598]
[1741425159707,0.011556,86534.0,86532.0,0.1092598]
[1741425160696,0.242677,86535.0,86532.0,0.1092598]
[1741425160916,0.011556,86533.0,86532.0,0.1092598]
[1741425161729,0.011556,86533.0,86532.0,0.0003398]
[1741425162327,0.04775914,86533.0,86532.0,0.0003398]
[1741425164220,0.011556,86533.0,86532.0,0.0003398]
[1741425165593,0.04774179,86533.0,86532.0,0.0003398]
[1741425165795,0.27886679,86533.0,86532.0,0.0003398]
[1741425171002,0.04774179,86533.0,86532.0,0.0003398]
[1741425171427,0.27886679,86533.0,86532.0,0.0003398]
[1741425171774,0.04774179,86533.0,86532.0,0.0003398]
[1741425172188,0.03422758,86542.0,86532.0,0.0003398]
[1741425172422,0.011555,86538.0,86532.0,0.0003398]
[1741425172628,0.011556,86535.0,86532.0,0.0003398]
[1741425172812,0.24267,86537.0,86532.0,0.0003398]
[1741425172962,0.011555,86536.0,86532.0,0.0003398]
[1741425173166,0.011555,86537.0,86532.0,0.0003398]
[1741425173374,0.242671,86537.0,86532.0,0.0003398]
[1741425173619,0.011555,86537.0,86532.0,0.0003398]
[1741425174774,0.00028606,86545.0,86539.0,0.011555]
[1741425175010,0.03615399,86544.0,86537.0,0.242667]
[1741425175228,0.011555,86541.0,86535.0,0.231119]
[1741425175432,0.011555,86540.0,86534.0,0.011556]
[1741425175782,0.011555,86541.0,86535.0,0.011556]
[1741425175988,0.011555,86541.0,86535.0,0.242673]
[1741425176416,0.10414932,86538.0,86533.0,0.0774]
[1741425176621,0.011555,86537.0,86533.0,0.0774]
[1741425176997,0.11587422,86538.0,86533.0,0.32008]
[1741425177515,0.10431922,86538.0,86533.0,0.0774]
[1741425177714,0.011555,86536.0,86533.0,0.0774]
[1741425179465,0.33543222,86538.0,86533.0,0.0774]
[1741425179718,0.011555,86536.0,86533.0,0.0774]
[1741425182172,0.242672,86536.0,86533.0,0.0774]
[1741425182374,0.242679,86534.0,86533.0,0.10892]
[1741425182789,0.27883815,86534.0,86533.0,0.10892]
[1741425183296,0.011556,86533.0,86532.0,0.0003398]
[1741425183513,0.04771515,86533.0,86532.0,0.0003398]
[1741425190418,0.04771515,86533.0,86532.0,0.0829398]
[1741425191014,0.27884015,86533.0,86532.0,0.0003398]
[1741425194816,0.04771515,86533.0,86532.0,0.0003398]
[1741425195481,0.27884015,86533.0,86532.0,0.0003398]
[1741425198928,0.04771515,86533.0,86532.0,0.0003398]
[1741425202999,0.03615915,86533.0,86532.0,0.0770398]
[1741425203207,0.04771515,86535.0,86532.0,0.0770398]
[1741425203455,0.03615915,86534.0,86532.0,0.0770398]
[1741425204222,0.011556,86533.0,86532.0,0.0770398]
[1741425204536,0.04771515,86533.0,86532.0,0.0770398]
[1741425209821,0.04771515,86533.0,86532.0,0.0003398]
[1741425210589,0.80081515,86533.0,86532.0,8e-07]
[1741425210814,1.73463796,86533.0,86532.0,8e-07]
[1741425211041,0.83681696,86533.0,86532.0,8e-07]
[1741425211596,0.367492,86529.0,86528.0,4e-07]
[1741425211795,0.73195115,86529.0,86528.0,4e-07]
[1741425211999,0.336558,86514.0,86513.0,8e-07]
[1741425212201,0.80997715,86514.0,86513.0,8e-07]
[1741425213463,0.81004872,86514.0,86513.0,8e-07]
[1741425216004,0.83304977,86514.0,86513.0,8e-07]
[1741425216556,0.84160819,86514.0,86513.0,8e-07]
[1741425227409,0.242818,86484.0,86483.0,0.08]
[1741425228299,0.26906031,86484.0,86483.0,0.08]
[1741425228754,0.02631383,86484.0,86483.0,0.08]
[1741425228958,0.03787583,86484.0,86483.0,0.08]
[1741425229596,0.26913183,86484.0,86483.0,0.08]
[1741425235970,0.26913183,86484.0,86483.0,0.0803398]
[1741425236426,0.26913183,86484.0,86483.0,0.0003398]
[1741425238606,0.37277541,86484.0,86483.0,0.0003398]
[1741425238807,0.40880628,86484.0,86483.0,0.0003398]
[1741425242577,0.3051627,86484.0,86483.0,0.0003398]
[1741425247755,0.3051627,86484.0,86483.0,0.0794398]
[1741425257516,0.0623447,86484.0,86483.0,0.0794398]
[1741425257895,0.0739067,86484.0,86483.0,0.0794398]